Cogmind - Beta 13 @@@ ROGUE MODE // 2024.04.03 @ 14:49:18 Player: MrMcCartney Result: Destroyed by G-34 Mercenary with Small Laser Performance ------------- Evolutions (1) 500 Regions Visited (2) 400 Robots Destroyed (21) 105 Value Destroyed (628) 628 Prototype IDs (0) 0 Alien Tech Used (0) 0 Bonus (0) 0 TOTAL SCORE: 1633 Bonus ------- None Cogmind --------- Core Integrity 0/400 Matter 300/400 Energy 350/350 System Corruption 5% Temperature Cool (6) Movement Treading (160) Location -9/Materials Parts ------- > --- POWER (2) -------- (None) > --- PROPULSION (2) --- Light Treads > --- UTILITY (3) ------ High-capacity Battery Medium Matter Pod Light Armor Plating > --- WEAPON (2) ------- Flail > --- INVENTORY (5) ---- Heat Sink Peak State ------------ > --- POWER ------------ Light Ion Engine Backup Power I > --- PROPULSION ------- Light Treads Armored Wheel > --- UTILITY ---------- Medium Matter Pod Signal Interpreter Field Recycling Unit > --- WEAPON ----------- Assault Rifle Grenade Launcher > --- INVENTORY -------- Light Ion Engine [Rating: 11] Favorites ----------- Power Light Ion Engine Engine Light Ion Engine Propulsion Armored Wheel Treads Light Treads Wheel Armored Wheel Utility Large Storage Unit Device Heat Sink Storage Large Storage Unit Processor Signal Interpreter Protection Light Armor Plating Weapon Assault Rifle Ballistic Gun Assault Rifle Launcher Grenade Launcher Special Weapon Plasma Cutter Impact Weapon Flail Special Melee Weapon Datajack Build | -11 -10 -9 ------- Run | Yrd Mat Mat Slots Evolved 2 | . . 2 Power 1 | . . 1 Propulsion . | . . . Utility 1 | . . 1 Weapon . | . . . Parts Attached 34 | 6 13 15 Power 7 | 1 2 4 Engine 7 | 1 2 4 Core . | . . . Reactor . | . . . Propulsion 7 | 2 3 2 Treads 2 | . . 2 Leg . | . . . Wheel 5 | 2 3 . Hover . | . . . Flight . | . . . Utility 11 | 1 4 6 Device 3 | 1 . 2 Storage 4 | . 2 2 Processor 3 | . 2 1 Hackware . | . . . Protection 1 | . . 1 Artifact . | . . . Weapon 9 | 2 4 3 Energy Gun . | . . . Energy Cannon . | . . . Ballistic Gun 3 | 2 1 . Ballistic Cannon . | . . . Launcher 1 | . 1 . Special Weapon 2 | . 2 . Impact Weapon 2 | . . 2 Slashing Weapon . | . . . Piercing Weapon . | . . . Special Melee Weapon 1 | . . 1 Unidentified Prototypes . | . . . Parts Lost 14 | . 2 12 Power 4 | . . 4 Propulsion 3 | . 1 2 Utility 3 | . . 3 Weapon 4 | . 1 3 Highest Loss Streak 8 | . 2 8 To Critical Strikes 1 | . . 1 Average Slot Usage (%) 81 | . 87 70 Engine 14 | . 13 15 Treads 1 | . . 4 Wheel 15 | . 21 5 Device 6 | . 6 4 Storage 12 | . 11 14 Processor 6 | . 7 5 Ballistic Gun 10 | . 14 4 Launcher 2 | . . 5 Special Weapon 6 | . 10 . Impact Weapon 3 | . . 9 Naked Turns . | . . . Heaviest Build 27 | 7 27 19 Greatest Support 24 | 20 24 20 Greatest Overweight (x) 6 | . 6 5 Average Overweight (x) . | . 1 . Largest Inventory Capacity 15 | 5 15 5 Average Capacity 9 | 5 13 5 Most Carried 6 | 2 6 3 Average Carried 1 | . 1 1 Final Capacity 5 | 5 5 5 Final Carried 4 | . 4 1 Class Distribution -------------------- 100% | Mutant Dominant Class ---------------- Mutant | -10/Materials Mutant | -9/Materials Resources | -11 -10 -9 ----------- Run | Yrd Mat Mat Matter Collected 771 | 284 72 415 Remotely . | . . . Salvage Created 710 | 40 130 540 Parts 36 | 2 4 30 Haulers Intercepted 1 | . . 1 Recyclers Shooed . | . . . Parts Field Recycled . | . . . Retrieved Matter . | . . . Parts Self-Destructed . | . . . Prevented . | . . . Kills | -11 -10 -9 ------- Run | Yrd Mat Mat Combat Hostiles Destroyed 14 | 1 2 11 Melee 5 | . . 5 Guns 3 | 1 2 . AOE 4 | . . 4 Classes Destroyed 8 | 1 1 6 Builder 2 | . . 2 Hauler 1 | . . 1 Recycler 1 | . . 1 Mechanic 1 | . 1 . Watcher 2 | . . 2 Grunt 10 | 1 2 7 Brawler 2 | . . 2 Sentry 2 | . . 2 Best Kill Streak 5 | 1 2 5 Combat Bots Only 4 | 1 2 4 Max Kills in Single Turn 1 | 1 1 1 Gunslinging . | . . . Exploded 1 | . . 1 Melee 1 | . . 1 Uniques/NPCs Destroyed . | . . . Combat | -11 -10 -9 -------- Run | Yrd Mat Mat Hostile Shots Fired 162 | 8 23 131 Missed 38 | 3 7 28 Damage Taken 1620 | 54 254 1312 Core 472 | 22 49 401 Absorbed by Shields . | . . . Core Remaining (%) 81 | 91 71 . Volleys Fired 67 | 6 41 20 Largest 2 | 2 2 1 Hottest 40 | 40 40 30 Shots Fired 92 | 12 60 20 Gun 73 | 12 51 10 Cannon . | . . . Launcher 10 | . . 10 Special 9 | . 9 . Kinetic 73 | 12 51 10 Thermal 9 | . 9 . Explosive 10 | . . 10 Electromagnetic . | . . . Robot Hit Streak 11 | 2 11 6 Robot Miss Streak 10 | 2 10 3 Penetration Max . | . . . Secondary Targets . | . . . Shots Hit Robots 77 | 6 30 41 Core Hits 36 | 2 9 25 Critical Kills . | . . . Critical Parts Destroyed 1 | . . 1 Critical Strikes 1 | . . 1 Smash 1 | . . 1 Melee Attacks 37 | . . 37 Impact 37 | . . 37 Slashing . | . . . Piercing . | . . . Sneak Attacks 2 | . . 2 Combat Hostiles . | . . . Follow-up Attacks 2 | . . 2 Damage Inflicted 1899 | 71 324 1504 Guns 428 | 71 268 89 Cannons . | . . . Explosions 476 | . . 476 Melee 939 | . . 939 Ramming . | . . . Kinetic 428 | 71 268 89 Thermal 56 | . 56 . Explosive 476 | . . 476 Electromagnetic . | . . . Impact 939 | . . 939 Slashing . | . . . Piercing . | . . . Highest Corruption 5 | . . 5 Average Corruption 4 | . . 4 Corruption Purged . | . . . Corruption Blocked . | . . . Effects 5 | . . 5 Message Errors 2 | . . 2 Matter Fused 2 | . . 2 Parts Fused 1 | . . 1 Overload Shots . | . . . Overflow Damage 203 | . . 203 Projectiles . | . . . Explosions 9 | . . 9 Melee 194 | . . 194 Knockbacks 3 | . . 3 Impact 3 | . . 3 Kinetic . | . . . Secondary . | . . . Self-Inflicted Damage 34 | . . 34 Shots 2 | . . 2 Rammed . | . . . Targets Rammed . | . . . Kicked . | . . . Crushed . | . . . Highest Temperature 14 | 6 5 14 Average Temperature 5 | 6 5 5 Received Heat Transfer 726 | 30 126 570 Siege Activations . | . . . Robots Corrupted . | . . . Combat Hostiles . | . . . Parts Fried 5 | . . 5 Impact Corruptions 7 | . . 7 Robots Melted . | . . . Combat Hostiles . | . . . Parts Melted . | . . . Heat Transferred 185 | . 185 . Parts Sabotaged . | . . . Parts Stolen . | . . . Parts Stripped . | . . . Power Chain Reactions . | . . . Alert | -11 -10 -9 ------- Run | Yrd Mat Mat Peak Influence 359 | 20 108 359 Initial 13 | . 13 5 Average 95 | 6 42 210 Maximum Alert Level 1 | . . 1 Low Security (%) 79 | 100 100 37 Level 1 20 | . . 62 Level 2 . | . . . Level 3 . | . . . Level 4 . | . . . Level 5 . | . . . High Security . | . . . Max Security . | . . . Squads Dispatched 3 | . . 3 Investigation 2 | . . 2 Extermination . | . . . Reinforcement 1 | . . 1 Assault . | . . . Garrison . | . . . Intercept . | . . . Searches Triggered . | . . . Construction Impeded . | . . . Haulers Reinforced . | . . . Active Scanning Responses . | . . . Cargo Convoy Interrupts . | . . . Stealth | -11 -10 -9 --------- Run | Yrd Mat Mat Distress Signals 2 | . . 2 Communications Jammed . | . . . Distress Signals . | . . . Times Spotted 32 | 1 13 18 Peak Tracking Total 7 | 1 2 7 Tactical Retreats . | . . . Traps | -11 -10 -9 ------- Run | Yrd Mat Mat Traps Triggered 4 | . 3 1 Indirectly . | . . . Trap Hack Attempts . | . . . Triggered . | . . . Disarmed . | . . . Reprogrammed . | . . . Reused . | . . . Traps Extracted . | . . . Installed . | . . . Triggered . | . . . Machines | -11 -10 -9 ---------- Run | Yrd Mat Mat Machines Disabled 5 | . . 5 Max in Single Turn 4 | . . 4 Machines Repaired . | . . . Machines Dismantled 4 | . 4 . Machines Sabotaged . | . . . Overloaded Fab Kills . | . . . Hacking | -11 -10 -9 --------- Run | Yrd Mat Mat Machines Accessed 2 | . 1 1 Terminals 1 | . 1 . Fabricators . | . . . Repair Stations . | . . . Recycling Units 1 | . . 1 Scanalyzers . | . . . Garrison Access . | . . . Total Hacks 7 | . 2 5 Successful 4 | . . 4 Failed 3 | . 2 1 Catastrophic . | . . . Database Lockouts . | . . . Manual . | . . . Terminals 2 | . 2 . Fabricators . | . . . Repair Stations . | . . . Recycling Units 5 | . . 5 Scanalyzers . | . . . Garrison Access . | . . . Terminal Hacks . | . . . Fabricator Hacks . | . . . Repair Station Hacks . | . . . Recycling Unit Hacks 4 | . . 4 Recycle Component 1 | . . 1 Process 1 | . . 1 Report Inventory 1 | . . 1 Retrieve Matter 1 | . . 1 Scanalyzer . | . . . Garrison Access Hacks . | . . . Unauthorized Hacks . | . . . Terminals . | . . . Fabricators . | . . . Repair Stations . | . . . Recycling Units . | . . . Scanalyzers . | . . . Garrison Access . | . . . Data Cores Recovered . | . . . Used . | . . . Hacking Detections 1 | . . 1 Full Trace Events 1 | . . 1 Feedback Events . | . . . Feedback Blocked . | . . . Robot Schematics Acquired . | . . . Robots Built . | . . . Authchips . | . . . Time . | . . . Total Robot Build Rating . | . . . Part Schematics Acquired . | . . . Parts Built . | . . . Authchips . | . . . Time . | . . . Total Part Build Rating . | . . . Parts Repaired . | . . . Time . | . . . Parts Recycled 1 | . . 1 Recycled Matter 46 | . . 46 Retrieved Matter . | . . . Retrieved Components . | . . . Parts Scanalyzed . | . . . Part Schematics Acquired . | . . . Parts Damaged . | . . . Bothacking | -11 -10 -9 ------------ Run | Yrd Mat Mat Used RIF Installer . | . . . Robots Hacked . | . . . Non-combat . | . . . Combat . | . . . Robot Hacks Applied . | . . . Relay Couplers Released . | . . . Fabnet Peak Effective % . | . . . Robots Rewired . | . . . Allies Hacked . | . . . Hacks Repelled . | . . . Allies | -11 -10 -9 -------- Run | Yrd Mat Mat Total Allies . | . . . Largest Group . | . . . Highest-Rated Group . | . . . Highest-Rated Ally . | . . . Total Orders . | . . . Ally Attacks . | . . . Total Damage . | . . . Kills . | . . . Allies Corrupted . | . . . Allies Melted . | . . . Intel | -11 -10 -9 ------- Run | Yrd Mat Mat Robot Analysis Total . | . . . Derelict Logs Recovered . | . . . Drone Launches . | . . . Drone Recoveries . | . . . Exploration | -11 -10 -9 ------------- Run | Yrd Mat Mat Turns Passed 1104 | 89 645 370 Spaces Moved 655 | 80 428 147 Core 62 | 16 2 44 Treads 51 | . . 51 Legs . | . . . Wheels 542 | 64 426 52 Hover . | . . . Flight . | . . . Fastest Speed 50 | 50 80 90 Average Speed 112 | 74 107 149 Slowest Speed 350 | 80 350 300 Overloaded Moves . | . . . Propulsion Burnouts . | . . . Robots Hopped . | . . . Cave-ins Triggered . | . . . Exploration Rate (%) 24 | 6 48 18 Regions Visited 2 Branch Regions . Pre-discovered Areas . | . . . Known Exits Taken 1 | . 1 . Unknown Exits Taken 1 | 1 . . Scrap Searched . | . . . Spaces Dug . | . . . Terrain Destroyed 43 | . . 43 Melee . | . . . Projectile . | . . . AOE 43 | . . 43 Terrain Rammed . | . . . Walls Destroyed . | . . . Machines Disabled . | . . . Actions | -11 -10 -9 --------- Run | Yrd Mat Mat Total 843 | 99 516 228 Wait . | . . . Move 653 | 79 427 147 Hop . | . . . Pick Up 33 | 7 14 12 Fast Attach 1 | . 1 . Attach 28 | 6 9 13 Detach 1 | . 1 . Swap 5 | . 3 2 Drop 6 | 1 4 1 Fire 67 | 6 41 20 Melee 33 | . . 33 Ram . | . . . Kick . | . . . Crush . | . . . Escape Stasis . | . . . Rewire . | . . . Trap . | . . . Miscellaneous 16 | . 16 . Route ------- -11/Scrapyard -10/Materials (discovered 2 exits: *Mat x2) -9/Materials History --------- Turn | Location | Event 2 | -11/Scrapyard | Met Revision 17 42 | -11/Scrapyard | Discovered new exit (range 8) 90 | -11/Scrapyard | Entered Materials 260 | -10/Materials | Discovered new exit (range 3) 305 | -10/Materials | Build established: Mutant 633 | -10/Materials | Discovered new exit (range 3) 729 | -10/Materials | Identified exit to Materials 735 | -10/Materials | Entered another Materials area 735 | -9/Materials | Evolved 2 slots: Power x1, Utility x1 950 | -9/Materials | Core integrity fell below 50% 982 | -9/Materials | Lost 8 parts (2p2n2u2w) 1077 | -9/Materials | Core integrity fell below 20% 1105 | -9/Materials | Destroyed by G-34 Mercenary with Small Laser Last Messages --------------- Destroyed Lgt. Ion Engine. Destroyed Wheel. U-05 Engineer system corrupted by crushing effect. U-05 Engineer system terminally corrupted. Terrain Scan Processor fried. Terrain Scanner fried. Acquired 49 matter. U-05 Engineer builds a Door. Datajack destroyed. Ion Engine destroyed. K-01 Serf collects debris. Acquired Lgt. Treads. K-01 Serf collects debris. Acquired Lgt. Armor Plating. Acquired 14 matter. K-01 Serf collects debris. K-01 Serf cleans the Electrolysis Chamber. K-01 Serf collects debris. [Achievement: First Step to Greatness] Map ----- +----------------------------------------------------+ | # "????#????????????????????????????????????????? | | # """? #????????????????????????????????????????? | | # #????????????????????????????????????????? | | # """ #????????????????????????????????????????? | | # """ ]#????????????????????????????????????????? | | # """ ?????????????????????????????????????????? | | # ?????+##??????????????????????????????????? | | ## # ##### ###????????????????????????????????? | | = ???????????????????????????????? | | = ???????????????????????????????? | | # +####### #??????????????????????????????????? | | ! ! "" #######??????????????????????????????????? | | # !! "S # ????????????????????????????????? | | # " # ?????##?????????????????????????? | | # # ???#### #####????????????????????? | | #""" # ???# ????????????????????? | | #""" # ????#!]] ""#???????????????????? | | #""" ????#!] ""#???????????????????? | | # ?????#!] T"#???????????????????? | | ####+### % ?????# ""#???????????????????? | | # ##????# ""#???????????????????? | | # #????? ????????????????????? | | + #??????? = ??????????????????????? | | # #???????##+######### #???????????? | | ##??????# !gk #???????????? | | ######### u@ g #???????????? | | # + k u #???????????? | | # # """ ########???????????? | | # % //# """ #??????????????????? | | # # !! !# """ #??????????????????? | | # # ! # #??????????????????? | | # " # / # ?????????????????? | | # " # # ?????????????????? | | ## # # ????????????????? | | ?# [ / # ######+???????????????? | | ?# # # #u #?????????????????????? | | ?# #### # # #?????????????????????? | | ?# #??# ######### #?????????????????????? | | ?# #??# ?????? #?????????????????????? | | ?# #??" ????? #?????????????????????? | | ?# #?? ???? #?????????????????????? | | ?# #?"" """"" "??"" ??????????????????????? | | ?# #?????""?"" ??????????????????????????????? | | ?# #??????????????????????????????????????????? | | ?# #??????????????????????????????????????????? | | ## #??????????????????????????????????????????? | | #??????????????????????????????????????????? | | #??????????????????????????????????????????? | | #??????????????????????????????????????????? | | #######??????????????????????????????????????????? | +----------------------------------------------------+ Best States ------------- Heat Dissipation 38 Energy Generation 15 Energy Capacity 525 Matter Stores 300 Matter Capacity 400 Sight Range 16 Terrain Scan Density 10 Armor Coverage 150 Evasion (%) 50 Targeting Accuracy 5 Recoil Reduction 1 Item Schematics ----------------- None Robot Schematics ------------------ None Fabricated ------------ Nothing Alien Tech Used ----------------- None Achievements -------------- Crack Shot First Step to Greatness Loot Pinata One Hack Too Far Storm Trooper Uninvited Guest Challenges ------------ None Game ------ Seed UtilityChargeArmor Manual? 0 Play Time 00:33:35 Cumulative 0.5 hours Start 2024.04.03 @ 14:04:07 End 2024.04.03 @ 14:49:18 Sessions 1 Manual Loads 0 Difficulty Rogue Special Mode None Game No. 1 Rogue 1 Adventurer 0 Explorer 0 Win Type - Total 0 Types 0/0/0/0/0/0/0/0/0 Lore% 0 Gallery% 1 Achievement% 2 Wizard Run 0 Options --------- Layout 1 ASCII 0 Keyboard 0 Movement Mouse Keybinds 0 Fullscreen 1 Font 42/SmallcapsGlow Map View 52x41 Zoom Use 0% Tactical HUD 0 Map Filters NONE Filters NONE Steam 1 RUN: ce18a2dc-2a76-4cc4-8da4-8a4e30f86174